bitfinex-derivatives/quotes_ETHF0:USTF0_20250114
["timestamp","ask_amount","ask_price","bid_price","bid_amount"]
[1736846039387,0.31622336,3198.0,3197.9,25.2]
[1736846044092,0.31622336,3198.0,3197.9,28.20565125]
[1736846044292,0.00342336,3198.0,3197.9,28.51846125]
[1736846045093,0.00342336,3198.0,3197.9,31.72626125]
[1736846046892,0.00342336,3198.0,3197.9,33.14726125]
[1736846047094,0.00342336,3198.0,3197.9,32.83445125]
[1736846047293,0.31622336,3198.0,3197.9,32.83445125]
[1736846047698,0.31622336,3198.0,3197.9,31.41345125]
[1736846047893,0.31622336,3198.0,3197.9,28.4078]
[1736846048798,0.00342336,3198.0,3197.9,31.72626125]
[1736846050796,0.00342336,3198.0,3197.9,33.14726125]
[1736846056599,0.31622336,3198.0,3197.9,31.72626125]
[1736846056901,0.31622336,3198.0,3197.9,31.41345125]
[1736846057301,0.31622336,3198.0,3197.9,30.8884467]
[1736846059106,0.31622336,3198.0,3197.9,28.4078]
[1736846059295,0.31622336,3198.0,3197.9,30.8884467]
[1736846059799,0.31622336,3198.0,3197.9,28.4078]
[1736846060916,0.31622336,3198.0,3197.9,25.2]
[1736846061407,3.52402336,3198.0,3197.9,25.2]
[1736846061806,0.78217,3197.4,3197.1,2.4806467]
[1736846062111,0.4824,3197.3,3197.1,2.7935367]
[1736846062311,0.4824,3197.3,3197.1,2.4806467]
[1736846062912,3.2078,3197.6,3197.2,40.8]
[1736846063104,3.52064,3197.6,3197.5,2.4806467]
[1736846063502,0.31284,3197.6,3197.5,2.4806467]
[1736846063801,0.31284,3197.6,3197.5,43.2806467]
[1736846064314,0.31284,3197.6,3197.5,40.8]
[1736846066117,0.77844,3197.6,3197.5,40.8]
[1736846067108,0.31289,3197.1,3197.0,3.2078]
[1736846067914,0.31289,3197.1,3197.0,44.0078]
[1736846069705,3.2078,3197.7,3197.0,44.0078]
[1736846069912,0.31286,3197.4,3197.3,2.4806467]
[1736846070109,0.31286,3197.4,3197.3,2.7935167]
[1736846070707,0.31286,3197.4,3197.3,43.5935167]
[1736846071609,0.31286,3197.4,3197.3,40.8]
[1736846074510,0.31286,3197.4,3197.3,43.2806467]
[1736846074711,0.31286,3197.4,3197.3,43.5935167]
[1736846075515,0.31286,3197.4,3197.3,43.2806467]
[1736846075705,0.31285,3197.6,3197.5,0.31283]
[1736846075911,0.31285,3197.6,3197.5,6.0012767]
[1736846076414,0.31284,3197.7,3197.6,0.31283]
[1736846076609,0.4957,3197.8,3197.5,5.6884467]
[1736846076913,0.31284,3197.6,3197.5,6.0012767]
[1736846077113,0.31284,3197.6,3197.5,46.8012767]
[1736846082612,0.31284,3197.7,3197.6,0.31283]
[1736846083212,0.4957,3197.8,3197.5,5.6884467]
[1736846083413,0.31284,3197.6,3197.5,6.0012867]
[1736846083909,0.31284,3197.6,3197.5,46.8012867]
[1736846088922,0.31284,3197.7,3197.6,0.31283]
[1736846089730,0.31284,3197.7,3197.6,41.11283]
[1736846090626,3.2078,3200.2,3198.2,3.644]
[1736846090923,4.46265008,3199.3,3199.2,8.4817734]
[1736846091129,4.46265008,3199.3,3199.2,7.4061267]
[1736846091130,2.63065501,3199.3,3199.2,7.4061267]
[1736846091626,4.90746,3200.7,3199.2,47.8934467]
[1736846091627,0.7814,3200.5,3199.2,47.8934467]
[1736846091830,0.31265,3199.5,3199.4,3.2078]
[1736846092226,0.4,3200.0,3199.4,3.2078]
[1736846092525,0.7126,3200.0,3199.9,44.0078]
[1736846092931,0.7126,3200.0,3199.9,44.32041]
[1736846093237,0.7126,3200.0,3199.9,44.0078]
[1736846094033,0.7126,3200.0,3199.9,40.8]
[1736846095032,0.7126,3200.0,3199.9,41.11261]
[1736846095425,0.4,3200.0,3199.9,44.32041]
[1736846095627,0.7126,3200.0,3199.9,44.32041]
[1736846095920,0.4,3200.0,3199.9,44.32041]
[1736846097224,0.7126,3200.0,3199.9,44.32041]
[1736846097624,0.4,3200.0,3199.9,44.32041]
[1736846098026,0.7126,3200.0,3199.9,44.32041]
[1736846099234,0.4,3200.0,3199.9,44.32041]
[1736846099930,0.31256,3200.5,3200.4,0.31256]
[1736846100135,0.4503,3200.7,3200.4,3.2078]
[1736846100436,0.76284,3200.7,3200.6,2.4806467]
[1736846100639,0.76284,3200.7,3200.6,43.2806467]
[1736846100934,0.76284,3200.7,3200.6,40.8]
[1736846101137,0.31256,3200.5,3200.4,3.2078]
[1736846101334,0.31255,3200.6,3200.5,0.31255]
[1736846101534,0.31255,3200.6,3200.5,41.11255]
[1736846101730,0.31256,3200.5,3200.4,6.0010067]
[1736846101937,0.31256,3200.5,3200.4,5.6884467]
[1736846102836,0.31256,3200.5,3200.4,46.4884467]
[1736846103937,5.0,3200.5,3199.9,3.2078]
[1736846104136,0.31264,3199.6,3199.5,3.2078]
[1736846104534,0.31264,3199.6,3199.5,44.0078]
[1736846104936,3.2078,3201.1,3199.5,46.4884467]
[1736846105135,0.31258,3200.3,3200.2,0.31258]
[1736846105339,0.31258,3200.3,3200.2,3.2078]
[1736846106044,0.31258,3200.3,3200.2,3.52038]
[1736846106339,0.31258,3200.3,3200.2,44.0078]
[1736846109035,5.31258,3200.3,3200.2,44.0078]
[1736846109636,0.31258,3200.3,3200.2,44.0078]
[1736846110944,0.31258,3200.3,3200.2,44.32038]
[1736846111246,0.31258,3200.3,3200.2,44.0078]
[1736846114945,0.31258,3200.3,3200.2,40.8]
[1736846115543,0.31261,3199.9,3199.8,3.2078]
[1736846115850,0.31261,3199.9,3199.0,0.31269]
[1736846115851,0.31265,3199.5,3199.4,3.2078]
[1736846116543,0.31265,3199.5,3199.4,44.0078]
[1736846116746,0.31265,3199.5,3199.4,44.32046]
[1736846116949,0.78156,3199.9,3199.4,44.0078]
[1736846117145,0.31265,3199.6,3199.5,2.4806467]
[1736846117742,0.78156,3199.9,3199.4,3.2078]
[1736846117945,0.31265,3199.5,3199.4,3.2078]
[1736846118444,0.31265,3199.5,3199.4,44.0078]
[1736846119147,0.31265,3199.6,3199.5,0.31264]
[1736846119348,0.9199,3200.2,3199.5,0.4669]
[1736846119549,1.23248,3200.2,3200.1,3.2078]
[1736846119849,1.23248,3200.2,3200.1,44.0078]
[1736846120446,0.77588,3200.2,3200.1,44.0078]
[1736846122851,0.31258,3200.2,3200.1,44.0078]
[1736846123152,3.2078,3201.3,3200.1,49.0078]
[1736846123350,0.31251,3201.0,3200.9,3.2078]
[1736846124351,0.31251,3201.0,3200.9,44.0078]
[1736846124548,0.31251,3201.0,3200.9,44.32032]
[1736846124745,0.31251,3201.0,3200.9,44.0078]
[1736846127852,0.31251,3201.0,3200.9,44.32032]
[1736846128147,0.31251,3201.0,3200.9,44.0078]
[1736846128752,0.31251,3201.0,3200.9,44.32032]
[1736846128948,0.78119,3201.4,3201.0,0.3125]
[1736846128949,0.3125,3201.1,3201.0,0.3125]
[1736846129149,0.3125,3201.2,3201.1,0.31249]
[1736846129354,0.3125,3201.1,3201.0,1.2711]
[1736846129858,0.3125,3201.1,3201.0,42.0711]
[1736846130648,0.3125,3201.1,3201.0,41.7586]
[1736846130852,0.3125,3201.1,3201.0,42.07111]
[1736846131852,0.0008,3202.6,3201.1,0.78124]
[1736846132054,0.0008,3202.6,3202.5,5.6884467]
[1736846132055,0.31235,3202.6,3202.5,5.6884467]
[1736846132760,0.31234,3202.8,3202.5,46.4884467]
[1736846133058,0.31233,3202.9,3202.5,46.8008067]
[1736846133258,3.2078,3203.4,3202.5,46.4884467]
[1736846133456,0.31228,3203.3,3202.9,3.2078]
[1736846133661,3.2078,3203.4,3203.0,2.4806467]
[1736846133859,0.31231,3203.1,3203.0,2.4806467]
[1736846134051,0.31231,3203.0,3202.9,3.2078]
[1736846134453,2.4806467,3203.2,3202.5,3.2078]
[1736846134655,0.31235,3202.6,3202.5,3.2078]
[1736846134858,0.31239,3202.2,3202.1,3.2078]
[1736846135157,0.31239,3202.2,3202.1,44.0078]
[1736846135856,0.31239,3202.2,3202.1,40.8]
[1736846136165,0.31243,3201.8,3201.7,3.2078]
[1736846136455,0.31247,3201.4,3201.3,3.2078]
[1736846136660,0.31247,3201.4,3201.3,44.0078]
[1736846136860,0.31247,3201.4,3201.3,46.4884467]
[1736846137559,0.31247,3201.4,3201.3,44.0078]
[1736846141660,0.31247,3201.4,3201.3,40.8]
[1736846142162,3.52027,3201.4,3201.3,40.8]
[1736846143263,3.2078,3201.4,3200.7,3.2078]
[1736846143463,0.31253,3200.8,3200.7,3.2078]
[1736846144257,0.31253,3200.8,3200.7,44.0078]
[1736846144562,0.31253,3200.8,3200.7,40.8]
[1736846144961,5.31253,3200.8,3200.7,40.8]
[1736846145156,5.31253,3200.8,3200.7,39.99994]
[1736846145465,0.31262,3199.8,3199.7,3.2078]
[1736846146259,0.31262,3199.8,3199.7,44.0078]
[1736846147770,0.31262,3199.8,3199.7,40.8]
[1736846149167,0.4948,3200.1,3199.7,40.8]
[1736846149466,0.80739,3200.1,3200.0,3.2078]
[1736846150069,0.80739,3200.1,3200.0,44.0078]
[1736846150971,0.80739,3200.1,3200.0,40.8]
[1736846153669,0.31264,3199.6,3199.5,3.2078]
[1736846154574,0.31264,3199.6,3199.5,44.0078]
[1736846162574,0.31264,3199.6,3199.5,40.8]
[1736846163169,5.31264,3199.6,3199.5,40.3]
[1736846163468,0.31264,3199.6,3199.5,40.3]
[1736846163679,5.78894,3199.6,3199.5,40.3]
[1736846164575,0.31272,3198.8,3198.7,3.2078]
[1736846165574,0.31272,3198.8,3198.7,44.0078]
[1736846168269,0.31272,3198.8,3198.7,40.8]
[1736846168971,0.31272,3198.8,3198.7,44.0078]
[1736846169971,0.31272,3198.8,3198.7,40.8]
[1736846170171,0.31276,3198.4,3198.3,3.2078]
[1736846170371,0.3128,3198.0,3197.9,3.2078]
[1736846171376,0.3128,3198.0,3197.9,44.0078]
[1736846171577,0.3128,3198.0,3197.9,40.8]
[1736846173974,0.766,3198.0,3197.9,40.8]
[1736846176172,0.4532,3198.0,3197.3,3.2078]
[1736846176376,0.31286,3197.4,3197.3,3.2078]
[1736846177178,0.31286,3197.4,3197.3,44.0078]
[1736846184687,0.31286,3197.4,3196.9,3.2078]
[1736846184688,0.3129,3197.0,3196.9,3.2078]
[1736846185985,0.3129,3197.0,3196.9,44.0078]
[1736846187488,0.3129,3197.0,3196.9,44.4577]
[1736846189089,0.3129,3197.0,3196.9,44.77061]
[1736846189288,0.3129,3197.1,3197.0,0.31289]
[1736846189484,0.4496,3197.8,3196.9,46.93730306]
[1736846189686,0.4496,3197.8,3197.5,3.2078]
[1736846189687,0.31284,3197.6,3197.5,3.2078]
[1736846190288,0.31284,3197.6,3197.5,2.7078]
[1736846190492,0.31284,3197.6,3197.5,43.5078]
[1736846191092,0.31284,3197.6,3197.5,40.8]
[1736846194989,0.31284,3197.6,3197.5,44.0078]
[1736846195187,1.27538,3198.2,3197.5,46.48740306]
[1736846195392,0.3128,3198.0,3197.9,3.2078]
[1736846195990,0.3128,3198.0,3197.9,44.0078]
[1736846200391,2.79240306,3198.0,3197.9,44.0078]
[1736846200694,2.79240306,3198.0,3197.9,40.8]
[1736846200894,0.31284,3197.6,3197.5,3.2078]
[1736846201991,0.31284,3197.6,3197.5,44.0078]
[1736846204692,0.31284,3197.6,3197.5,44.32065]
[1736846204899,0.31284,3197.7,3197.6,0.31284]
[1736846205097,0.31284,3197.7,3197.6,0.79194]
[1736846205294,0.9501,3198.2,3197.5,3.2078]
[1736846205495,2.47960306,3197.7,3197.1,3.2078]
[1736846205804,0.31284,3197.6,3197.5,3.2078]
[1736846206098,3.98983,3198.0,3197.5,44.0078]
[1736846206299,0.78201,3198.0,3197.5,44.0078]
[1736846206501,0.31284,3197.6,3197.5,44.32064]
[1736846208001,0.31284,3197.6,3197.5,44.0078]
[1736846215520,0.31284,3197.6,3197.5,44.32065]
[1736846221022,0.31284,3197.6,3197.5,42.55985034]
[1736846223327,0.31284,3197.6,3197.5,40.8]
[1736846223823,0.31281,3198.0,3197.9,0.3128]
[1736846224123,0.3128,3198.1,3198.0,0.31279]
[1736846224320,0.31281,3198.0,3197.9,0.3128]
[1736846224626,0.31281,3198.0,3197.9,41.1128]
[1736846224826,0.3128,3198.1,3198.0,0.3128]
[1736846225024,3.6645,3198.2,3197.9,40.8]
[1736846225421,3.2078,3198.2,3197.9,40.8]
[1736846225720,0.4669,3198.7,3198.6,0.31274]
[1736846225920,0.31276,3198.5,3198.4,0.31276]
[1736846226122,0.78176,3199.0,3198.4,0.31276]
[1736846226123,1.24866,3199.0,3198.4,0.31276]
[1736846226327,0.31275,3198.6,3198.4,0.31276]
[1736846226522,0.31275,3198.5,3198.4,0.31276]
[1736846226924,0.31275,3198.6,3198.5,0.31275]
[1736846227318,0.31275,3198.6,3198.3,3.2078]
[1736846227319,1.24866,3199.0,3198.3,3.2078]
[1736846227525,0.31275,3198.5,3198.4,0.31276]
[1736846227725,0.31275,3198.6,3198.5,0.31275]
[1736846228531,1.24868,3199.0,3198.3,3.2078]
[1736846229031,1.24868,3199.0,3198.5,0.31274]
[1736846229032,0.31274,3198.6,3198.5,0.31274]
[1736846229524,0.4669,3199.0,3198.5,40.8]
[1736846229726,0.31274,3198.7,3198.6,0.31274]
[1736846229931,0.4669,3199.0,3198.4,2.47960306]
[1736846230121,0.4669,3199.0,3198.4,3.26151306]
[1736846230321,3.2078,3199.6,3198.9,44.0078]
[1736846230526,0.31268,3199.3,3199.1,0.31268]
[1736846230819,0.5285,3199.5,3199.0,0.5093]
[1736846231025,0.31268,3199.3,3199.1,0.31269]
[1736846231228,0.5285,3199.5,3199.1,0.31269]
[1736846231229,0.31268,3199.2,3199.1,0.31269]
[1736846231833,0.31268,3199.3,3199.1,0.31269]
[1736846232135,0.31268,3199.3,3199.2,40.8]
[1736846234331,0.31267,3199.4,3199.2,41.11267]
[1736846234527,0.5285,3199.5,3199.2,41.11267]
[1736846234725,0.31267,3199.3,3199.2,40.8]
[1736846240943,3.00810306,3199.5,3199.0,0.5093]
[1736846241143,0.31269,3199.2,3199.1,0.31269]
[1736846241341,3.7152,3199.7,3199.0,2.98890306]
[1736846241535,3.7152,3199.7,3199.4,0.31266]
[1736846241736,0.31265,3199.5,3199.4,0.31266]
[1736846242035,0.31265,3199.5,3199.4,41.11266]
[1736846242236,2.79225306,3199.5,3199.4,40.8]
[1736846243141,0.31265,3199.5,3199.4,40.8]
[1736846245344,2.79225306,3199.5,3199.4,40.8]
[1736846245738,0.31265,3199.5,3199.4,40.8]
[1736846245934,0.31266,3199.4,3199.3,0.31267]
[1736846246139,0.31265,3199.6,3199.5,0.31265]
[1736846246644,3.2078,3199.7,3199.6,0.31264]
[1736846246836,3.52043,3199.7,3199.6,0.31264]
[1736846247032,3.52043,3199.7,3199.6,40.8]
[1736846247746,0.31262,3199.9,3199.8,0.31262]
[1736846248140,0.5302,3200.2,3199.7,0.4785]
[1736846248444,0.5302,3200.2,3199.8,0.31262]
[1736846248445,0.31262,3199.9,3199.8,0.31262]
[1736846248845,0.31262,3199.9,3199.8,40.8]
[1736846252543,0.31266,3199.4,3199.3,3.6966]
[1736846252737,0.31266,3199.4,3199.3,3.2078]
[1736846252940,3.9894,3199.7,3199.1,0.31269]
[1736846252941,0.31269,3199.2,3199.1,0.31269]
[1736846253144,0.78163,3199.6,3198.9,0.8015]
[1736846253145,0.3127,3199.0,3198.9,0.8015]
[1736846253345,0.78166,3199.5,3198.9,0.4888]
[1736846253646,0.31265,3199.5,3199.4,40.8]
[1736846256746,2.28763,3199.6,3199.2,0.31268]
[1736846256949,0.31267,3199.3,3199.2,0.31268]
[1736846257849,0.31267,3199.3,3199.2,41.11268]
[1736846258953,0.31267,3199.4,3199.3,0.31267]
[1736846259154,0.31267,3199.3,3199.2,0.31268]
[1736846259647,0.31267,3199.3,3199.2,41.11268]
[1736846260253,0.9989,3199.6,3199.5,0.31265]
[1736846260553,3.52043,3199.7,3199.6,0.31264]
[1736846260740,0.31266,3199.5,3199.4,0.31265]
[1736846260943,0.31266,3199.5,3199.4,41.11265]
[1736846261152,0.31266,3199.5,3199.4,40.8]
[1736846262554,0.31266,3199.5,3199.2,3.2078]
[1736846262555,3.9894,3199.7,3199.2,3.2078]
[1736846262746,0.31267,3199.3,3199.2,3.52048]
[1736846263244,3.2078,3199.7,3199.2,3.2078]
[1736846263449,0.31266,3199.5,3199.4,0.31266]
[1736846264050,0.31266,3199.5,3199.4,40.8]
[1736846264647,2.79226306,3199.5,3199.4,40.3]
[1736846265450,7.79226306,3199.5,3199.4,40.3]
[1736846265658,2.79226306,3199.5,3199.4,39.8]
[1736846265855,7.47960306,3199.5,3198.4,0.5003]
[1736846266160,0.31275,3198.5,3198.4,0.5003]
[1736846266857,5.68740306,3198.5,3197.7,0.31283]
[1736846267158,0.31283,3197.8,3197.6,3.52063]
[1736846267548,0.31282,3197.8,3197.7,0.31283]
[1736846267747,0.31282,3197.9,3197.7,0.31283]
[1736846268156,0.5283,3198.1,3197.6,3.2078]
[1736846268157,0.31283,3197.7,3197.6,3.2078]
[1736846268455,0.31283,3197.7,3197.6,3.52064]
[1736846268652,0.31283,3197.7,3197.6,3.2078]
[1736846269458,0.31283,3197.7,3197.6,44.0078]
[1736846269759,0.31282,3197.9,3197.8,0.31281]
[1736846270656,0.31282,3197.9,3197.8,41.11281]
[1736846270959,3.2078,3198.5,3197.9,0.3128]
[1736846271261,3.2078,3198.9,3198.5,0.31275]
[1736846271454,0.31275,3198.5,3198.4,3.2078]
[1736846272260,0.31275,3198.5,3198.4,44.32056]
[1736846272650,0.78177,3199.0,3198.4,44.0078]
[1736846272859,0.31275,3198.6,3198.5,0.31274]
[1736846273055,1.5668,3199.1,3198.5,2.47960306]
[1736846273359,0.31274,3198.7,3198.6,0.31273]
[1736846273559,0.31274,3198.7,3198.6,41.11273]
[1736846274962,0.31273,3198.8,3198.7,0.31272]
[1736846275160,0.3127,3199.0,3198.6,1.0946]
[1736846275457,3.2078,3199.3,3199.2,0.31268]
[1736846275757,3.2078,3199.3,3199.2,2.79228306]
[1736846277257,3.52047,3199.3,3199.2,2.79228306]
[1736846277956,3.52047,3199.3,3199.2,2.47960306]
[1736846278258,3.52047,3199.3,3199.2,2.79228306]
[1736846278564,3.52047,3199.3,3199.2,0.31268]
[1736846278860,0.3127,3199.1,3199.0,0.31269]
[1736846279256,0.31268,3199.3,3199.2,0.31267]
[1736846280063,0.31268,3199.3,3199.2,41.11267]
[1736846281165,0.31268,3199.3,3199.2,40.8]
[1736846283472,0.31268,3199.3,3199.2,41.11268]
[1736846283671,0.31268,3199.3,3199.2,40.8]
[1736846284965,0.31267,3199.4,3199.3,0.31267]
[1736846285271,0.31268,3199.3,3199.2,0.31268]
[1736846285669,0.31267,3199.4,3199.3,0.31267]
[1736846285868,0.31268,3199.3,3199.2,0.31268]
[1736846286070,0.31269,3199.2,3199.1,0.31269]
[1736846286369,0.31269,3199.2,3199.1,41.11269]
[1736846288073,0.78163,3199.6,3199.1,40.8]
[1736846288273,0.31268,3199.3,3199.2,0.31268]
[1736846288868,0.31268,3199.3,3198.9,5.68740306]
[1736846288869,0.31269,3199.2,3199.1,0.31269]
[1736846289067,0.83609,3199.2,3199.1,0.31269]
[1736846289674,0.83609,3199.2,3199.1,40.8]
[1736846293670,0.5234,3199.2,3198.5,3.2078]
[1736846293884,0.78174,3199.1,3198.5,3.2078]
[1736846294079,0.31274,3198.7,3198.6,0.31273]
[1736846294575,0.31274,3198.7,3198.6,41.11273]
[1736846295079,0.31274,3198.7,3198.6,40.8]
[1736846296678,0.31274,3198.7,3198.6,41.11274]
[1736846296876,0.31274,3198.7,3198.6,40.8]
[1736846301079,0.5234,3199.2,3198.6,40.8]
[1736846301080,3.2078,3199.7,3198.7,0.78184]
[1736846301283,0.5385,3199.6,3199.5,2.79225306]
[1736846301582,0.5462,3200.1,3200.0,0.3126]
[1736846301781,0.31258,3200.3,3200.1,0.31259]
[1736846301982,0.31258,3200.3,3200.0,41.1126]
[1736846302173,0.31258,3200.3,3200.0,40.8]
[1736846302373,1.1079,3200.5,3200.0,40.8]
[1736846302591,0.31259,3200.1,3200.0,40.8]
[1736846302795,0.31259,3200.2,3200.0,40.8]
[1736846302983,1.1079,3200.5,3200.0,40.8]
[1736846303184,0.31259,3200.1,3200.0,41.1126]
[1736846304191,0.31259,3200.1,3200.0,40.8]
[1736846304390,0.00294268,3200.1,3200.0,41.1126]
[1736846305190,0.00294268,3200.1,3200.0,40.8]
[1736846305390,0.31553268,3200.1,3200.0,40.8]
[1736846305892,0.31553268,3200.1,3200.0,41.1126]
[1736846306194,0.00294268,3200.1,3200.0,41.1126]
[1736846309295,0.00294268,3200.1,3200.0,44.3204]
[1736846310089,0.31553268,3200.1,3200.0,44.0078]
[1736846310300,0.31553268,3200.1,3200.0,44.3204]
[1736846310798,0.00294268,3200.1,3200.0,44.3204]
[1736846312097,0.31553268,3200.1,3200.0,44.3204]
[1736846312299,0.00294268,3200.1,3200.0,44.3204]
[1736846313001,0.31553268,3200.1,3200.0,44.3204]
[1736846314492,0.00294268,3200.1,3200.0,44.3204]
[1736846314694,0.5297,3201.4,3200.0,49.0078]
[1736846315002,0.31248,3201.3,3201.2,2.47960306]
[1736846315400,0.31248,3201.3,3201.2,43.27960306]
[1736846315900,0.31248,3201.3,3201.2,40.8]
[1736846318698,0.31246,3201.5,3201.4,0.31247]
[1736846318897,3.2078,3202.0,3201.3,3.2078]
[1736846319097,1.295,3202.8,3201.9,5.68740306]
[1736846319098,3.2078,3202.8,3201.9,5.68740306]
[1736846319308,0.31237,3202.5,3202.4,2.47960306]
[1736846319601,0.31237,3202.5,3202.4,40.8]
[1736846320402,3.2078,3202.8,3202.4,43.27960306]
[1736846320602,0.31234,3202.7,3202.4,43.59197306]
[1736846320900,0.31235,3202.7,3202.4,43.59197306]
[1736846321104,0.31235,3202.6,3202.4,43.27960306]
[1736846321415,0.31235,3202.6,3202.4,43.59197306]
[1736846321704,0.31234,3202.8,3202.4,43.27960306]
[1736846321901,0.31234,3202.7,3202.4,43.27960306]
[1736846322097,0.31236,3202.6,3202.4,43.59197306]
[1736846322298,0.31236,3202.6,3202.4,43.27960306]
[1736846322500,0.31236,3202.6,3202.4,43.59197306]
[1736846322694,3.2078,3203.2,3202.6,0.31235]
[1736846322999,0.31232,3202.9,3202.8,2.47960306]
[1736846323198,3.2078,3203.2,3202.8,2.47960306]
[1736846323505,0.31232,3202.9,3202.8,2.47960306]
[1736846323699,0.31232,3202.9,3202.8,3.02060306]
[1736846324304,0.31232,3202.9,3202.8,41.341]
[1736846324806,0.31232,3202.9,3202.8,43.82060306]
[1736846325603,0.31232,3202.9,3202.8,43.27960306]
[1736846325810,0.31232,3202.9,3202.8,40.8]
[1736846326701,0.31232,3202.9,3202.8,43.27960306]
[1736846327301,0.31232,3202.9,3202.8,40.8]
[1736846327608,3.2078,3203.2,3202.8,43.27960306]
[1736846327900,0.31232,3203.0,3202.9,0.5389]
[1736846328501,3.2078,3203.2,3202.9,0.5389]
[1736846328704,3.52009,3203.2,3203.1,43.27960306]
[1736846331901,3.2078,3203.2,3203.1,43.59190306]
[1736846332202,3.2078,3203.6,3203.1,43.27960306]
[1736846332403,0.31229,3203.2,3203.1,43.59190306]
[1736846332706,0.31229,3203.2,3203.1,43.27960306]
[1736846336202,0.31229,3203.2,3203.1,43.59190306]
[1736846337508,0.31229,3203.3,3203.2,0.31228]
[1736846338111,0.31229,3203.3,3203.2,41.11228]
[1736846340707,0.31228,3203.4,3203.3,0.31227]
[1736846340913,0.31226,3203.6,3203.5,0.31225]
[1736846341104,0.31226,3203.6,3203.0,3.2078]
[1736846341105,0.31229,3203.4,3203.0,3.2078]
[1736846341306,0.78058,3203.9,3203.0,3.2078]
[1736846341307,1.31208,3203.9,3203.2,2.47960306]
[1736846341501,0.84372,3203.9,3203.8,40.8]
[1736846342411,0.31222,3203.9,3203.8,40.8]
[1736846348715,5.0,3203.9,3202.8,0.87273]
[1736846348923,0.31232,3202.9,3202.8,0.87273]
[1736846349112,0.31235,3202.6,3202.5,3.2078]
[1736846349720,0.31235,3202.7,3202.6,0.31235]
[1736846350020,0.88353,3202.8,3202.7,0.31234]
[1736846350209,0.88353,3202.8,3202.7,2.79194306]
[1736846350415,0.88353,3202.8,3202.7,2.47960306]
[1736846350610,0.88353,3202.8,3202.7,43.27960306]
[1736846351423,0.31233,3202.8,3202.7,43.59194306]
[1736846351619,0.31233,3202.9,3202.8,0.31232]
[1736846351816,3.2078,3203.4,3202.7,2.47960306]
[1736846352123,0.78071,3203.3,3202.7,2.47960306]
[1736846352321,0.31233,3202.9,3202.8,0.31232]
[1736846352822,0.31233,3202.9,3202.8,41.11232]
[1736846353016,0.31233,3202.9,3202.8,40.8]
[1736846354619,0.31231,3203.1,3202.8,43.27960306]
[1736846354822,0.5565,3203.6,3203.1,2.47960306]
[1736846355020,0.31225,3203.6,3203.5,0.31226]
[1736846355529,0.31225,3203.6,3203.5,0.88746]
[1736846356416,0.31225,3203.6,3203.5,0.5752]
[1736846357623,0.31225,3203.6,3203.5,0.88746]
[1736846357920,0.31225,3203.6,3203.5,0.5752]
[1736846358924,0.31225,3203.6,3203.5,0.88746]
[1736846359524,0.31225,3203.6,3203.5,41.68746]
[1736846359831,0.31225,3203.6,3203.5,41.3752]
[1736846360623,0.31225,3203.7,3203.5,41.3752]
[1736846360820,0.31223,3203.9,3203.8,0.31223]
[1736846361025,0.31216,3204.6,3204.4,0.31217]
[1736846361219,3.2078,3204.7,3204.2,5.68740306]
[1736846361427,3.2078,3204.7,3204.6,41.11216]
[1736846361729,3.51995,3204.7,3204.6,40.8]
[1736846362132,0.31215,3204.7,3204.6,40.8]
[1736846369826,5.99955306,3204.7,3204.6,40.8]
[1736846370229,3.51995,3204.7,3204.6,40.8]
[1736846370624,0.31215,3204.7,3204.6,40.8]
[1736846371435,0.31215,3204.7,3204.6,44.31996]
[1736846372238,0.31215,3204.7,3204.6,44.0078]
[1736846372937,0.31215,3204.7,3204.6,3.2078]
[1736846373449,0.31214,3204.8,3204.7,0.31215]
[1736846373745,0.31214,3204.8,3204.7,40.8]
[1736846376438,0.78021,3205.4,3204.7,40.8]
[1736846376439,0.78013,3205.8,3204.7,45.8]
[1736846376638,0.31206,3205.6,3205.5,2.47960306]
[1736846377340,0.31206,3205.6,3205.5,43.27960306]
[1736846378239,0.31206,3205.6,3205.5,43.27624782]
[1736846378441,0.31206,3205.6,3205.5,43.58831782]
[1736846378839,0.31206,3205.6,3205.5,43.27624782]
[1736846379245,0.31203,3205.9,3205.7,0.31204]
[1736846379436,0.31203,3205.9,3205.8,2.47960306]
[1736846380146,0.31203,3205.9,3205.8,43.27960306]
[1736846380640,3.2078,3206.0,3205.8,43.27960306]
[1736846380843,3.2078,3206.0,3205.9,0.31203]
[1736846381143,3.2078,3206.9,3205.9,1.293]
[1736846381334,1.56262153,3208.0,3206.8,2.47960306]
[1736846381335,0.77968,3207.6,3206.8,2.47960306]
[1736846381541,0.31186,3207.6,3207.5,40.8]
[1736846383038,3.2078,3207.7,3207.5,40.8]
[1736846383246,1.1404,3207.9,3207.6,3.51966]
[1736846383450,1.1404,3207.9,3207.8,2.47960306]
[1736846383647,1.1404,3207.9,3207.6,3.2078]
[1736846383944,1.45223,3207.9,3207.8,40.8]
[1736846385145,0.31192,3207.0,3206.8,3.2078]
[1736846385445,0.31198,3206.4,3206.3,5.68740306]
[1736846386144,0.31198,3206.4,3206.3,46.48740306]
[1736846386344,3.2078,3207.0,3206.3,46.48740306]
[1736846386546,0.31195,3206.7,3206.6,2.47960306]
[1736846387452,3.2078,3207.0,3206.5,2.98962183]
[1736846387949,0.31195,3206.8,3206.6,0.31196]
[1736846388352,0.31194,3206.9,3206.8,0.31194]
[1736846388547,0.31189,3207.3,3206.8,3.30156183]
[1736846388751,0.31193,3206.9,3206.8,3.30156183]
[1736846388952,3.2078,3207.4,3206.8,2.98962183]
[1736846389151,0.31191,3207.2,3207.1,0.31191]